[Event "5th EKA IIFL Investment 2019"]
[Site "Mumbai"]
[Date "2020.01.02"]
[Round "4.41"]
[White "Madjidov, Jasur"]
[Black "Bharat Kumar Reddy Poluri"]
[Result "0-1"]
[ECO "D38"]
[WhiteElo "2136"]
[BlackElo "2337"]
[Annotator "RC"]
[PlyCount "144"]
[EventDate "2019.12.30"]
[EventType "swiss"]
[EventCountry "IND"]
[SourceTitle "playchess.com"]
[Source "ChessBase"]
[SourceQuality "1"]
[TimeControl "40/5400+30:1800+30"]

1. Nf3 {[%emt 0:00:54]} d5 {[%emt 0:00:00]} 2. d4 {[%emt 0:00:18]} e6 {[%emt 0:00:38]} 3. c4 {[%emt 0:00:12]} Nf6 {[%emt 0:00:08]} 4. Nc3 {[%emt 0:00:09]} Bb4 {[%emt 0:00:11]} 5. cxd5 {[%emt 0:02:37]} exd5 {[%emt 0:00:30]} 6. Bg5 {[%emt 0:00:25]} h6 {[%emt 0:01:58]} 7. Bxf6 {[%emt 0:04:21]} Qxf6 {[%emt 0:00:04]} 8. Qb3 {[%emt 0:00:13]} Nc6 {[%emt 0:00:34]} 9. e3 {[%emt 0:02:52]} O-O {[%emt 0:01:27]} 10. Be2 {[%emt 0:03:55]} Be6 {[%emt 0:08:59]} 11. O-O {[%emt 0:02:35]} a6 {[%emt 0:19:52]} 12. Nxd5 {[%emt 0:25:23]} Qd8 {[%emt 0:01:45]} 13. Bc4 {[%emt 0:00:38]} Bd6 {[%emt 0:00:49]} 14. Qc3 {[%emt 0:08:19]} Bxd5 {[%emt 0:05:59]} 15. Bxd5 {[%emt 0:01:49]} Bxh2+ {[%emt 0:00:03]} 16. Nxh2 {[%emt 0:05:27]} Qxd5 {[%emt 0:00:04]} 17. Qb3 {[%emt 0:04:10]} Qxb3 {[%emt 0:00:30]} 18. axb3 {[%emt 0:00:08]} Na7 {[%emt 0:03:13]} 19. Rfc1 {[%emt 0:00:39]} Nb5 {[%emt 0:01:10]} 20. Nf3 {[%emt 0:00:50]} Rad8 {[%emt 0:01:07]} 21. Ne5 {[%emt 0:03:40]} Rfe8 {[%emt 0:00:26]} 22. Nd3 {[%emt 0:00:50]} Re7 {[%emt 0:00:57]} 23. Nc5 {[%emt 0:00:58]} c6 {[%emt 0:00:22]} 24. g3 {[%emt 0:03:22]} Rd5 {[%emt 0:01:46]} 25. Kg2 {[%emt 0:00:28]} Nd6 {[%emt 0:01:47]} 26. Rh1 {[%emt 0:04:53]} Ne4 {[%emt 0:03:36]} 27. Nxe4 {[%emt 0:00:43]} Rxe4 {[%emt 0:00:04]} 28. Rac1 {[%emt 0:00:26]} Kf8 {[%emt 0:01:54]} 29. Rc3 {[%emt 0:07:48]} Ke7 {[%emt 0:00:38]} 30. Ra1 {[%emt 0:02:12]} Rb5 {[%emt 0:00:18]} 31. Ra4 {[%emt 0:02:44]} h5 {[%emt 0:02:42]} 32. Ra1 {[%emt 0:02:37]} g6 {[%emt 0:01:02]} 33. Ra4 {[%emt 0:01:14]} Re6 {[%emt 0:01:47]} 34. Ra1 {[%emt 0:02:21]} Rd6 {[%emt 0:00:52]} 35. Ra4 {[%emt 0:00:50]} Rdd5 {[%emt 0:00:42]} 36. Rac4 {[%emt 0:01:34]} Rb6 {[%emt 0:00:51]} 37. Ra4 {[%emt 0:03:15]} Rdb5 {[%emt 0:00:09]} 38. Ra3 {[%emt 0:00:07]} g5 {[%emt 0:01:09]} 39. e4 {[%emt 0:02:08]} f5 {[%emt 0:00:41]} 40. exf5 {[%emt 0:00:00]} Kf6 {[%emt 0:00:00]} 41. Re3 {[%emt 0:15:02]} Rxf5 {[%emt 0:10:13]} 42. Ra1 {[%emt 0:01:03]} Rb4 {[%emt 0:01:59]} 43. Rae1 {[%emt 0:01:14]} Rxd4 {[%emt 0:01:06]} 44. Re7 {[%emt 0:00:55]} Rb5 {[%emt 0:01:34]} 45. R1e6+ {[%emt 0:05:15]} Kf5 {[%emt 0:00:05]} 46. Re3 {[%emt 0:00:17]} Rd6 {[%emt 0:08:01]} 47. Rf7+ {[%emt 0:02:07]} Kg6 {[%emt 0:00:24]} 48. Ree7 {[%emt 0:01:32]} b6 {[%emt 0:00:53]} 49. f3 {[%emt 0:01:27]} Rf6 {[%emt 0:02:33]} 50. Rh7 {[%emt 0:04:24]} Rxb3 {[%emt 0:01:44]} 51. g4 {[%emt 0:00:15]} hxg4 {[%emt 0:00:30]} 52. fxg4 {[%emt 0:00:24]} Rxb2+ {[%emt 0:00:04]} 53. Kg3 {[%emt 0:02:30]} Re6 {[%emt 0:00:58]} 54. Reg7+ {[%emt 0:01:57]} Kf6 {[%emt 0:00:10]} 55. Rf7+ {[%emt 0:00:09]} Ke5 {[%emt 0:00:17]} 56. Rf5+ {[%emt 0:00:20]} Kd4 {[%emt 0:01:24]} 57. Rd7+ {[%emt 0:00:13]} Kc4 {[%emt 0:01:07]} 58. Rxg5 {[%emt 0:00:12]} a5 {[%emt 0:00:17]} 59. Rf5 {[%emt 0:00:17]} a4 {[%emt 0:00:49]} 60. Rf4+ {[%emt 0:00:27]} Kb5 {[%emt 0:00:23]} 61. Ra7 {[%emt 0:00:36]} Rb4 {[%emt 0:00:39]} 62. Rf5+ {[%emt 0:00:59]} c5 {[%emt 0:00:08]} 63. Kh4 {[%emt 0:00:18]} Rg6 {[%emt 0:00:58]} 64. Rg5 {[%emt 0:00:22]} Rxg5 {[%emt 0:00:05]} 65. Kxg5 {[%emt 0:00:06]} Rb1 {[%emt 0:00:11]} 66. Kf6 {[%emt 0:00:31]} Rf1+ {[%emt 0:00:11]} 67. Ke5 {[%emt 0:00:18]} Rg1 {[%emt 0:00:08]} 68. Kf5 {[%emt 0:00:05]} c4 {[%emt 0:00:30]} 69. g5 {[%emt 0:00:28]} c3 70. Rc7 a3 71. Rxc3 a2 72. Rb3+ Kc6 0-1

[Event "5th EKA IIFL Investment 2019"]
[Site "Mumbai"]
[Date "2020.01.02"]
[Round "4.42"]
[White "Sahoo, Utkal Ranjan"]
[Black "Wagh Suyog"]
[Result "1/2-1/2"]
[ECO "D31"]
[WhiteElo "2329"]
[BlackElo "2219"]
[Annotator "ChessBase"]
[PlyCount "81"]
[EventDate "2019.12.30"]
[EventType "swiss"]
[EventCountry "IND"]
[SourceTitle "playchess.com"]
[Source "ChessBase"]
[SourceQuality "1"]
[TimeControl "40/5400+30:1800+30"]

1. d4 {[%emt 0:00:00]} d5 {[%emt 0:00:00]} 2. c4 {[%emt 0:00:00]} e6 {[%emt 0:00:00]} 3. Nc3 {[%emt 0:00:02]} c6 {[%emt 0:00:00]} 4. cxd5 {[%emt 0:02:26]} exd5 {[%emt 0:00:00]} 5. Nf3 {[%emt 0:00:04]} Bf5 {[%emt 0:00:08]} 6. Bf4 {[%emt 0:05:52]} Bd6 {[%emt 0:00:05]} 7. Qd2 {[%emt 0:01:30]} Ne7 {[%emt 0:11:02]} 8. h3 {[%emt 0:02:44]} O-O {[%emt 0:02:08]} 9. g4 {[%emt 0:02:10]} Bxf4 {[%emt 0:05:11]} 10. Qxf4 {[%emt 0:00:08]} Be6 {[%emt 0:00:11]} 11. Qd2 {[%emt 0:18:24]} c5 {[%emt 0:12:41]} 12. e3 {[%emt 0:01:44]} Nbc6 {[%emt 0:04:17]} 13. Bg2 {[%emt 0:01:07]} Ng6 {[%emt 0:21:15]} 14. dxc5 {[%emt 0:03:56]} Qa5 {[%emt 0:01:23]} 15. O-O {[%emt 0:02:03]} Qxc5 {[%emt 0:01:42]} 16. Ne2 {[%emt 0:01:33]} Qe7 {[%emt 0:06:03]} 17. Ned4 {[%emt 0:01:25]} h5 {[%emt 0:00:58]} 18. gxh5 {[%emt 0:04:35]} Nh4 {[%emt 0:01:06]} 19. Nxh4 {[%emt 0:02:05]} Qxh4 {[%emt 0:00:09]} 20. Kh2 {[%emt 0:00:18]} Nxd4 {[%emt 0:04:55]} 21. Qxd4 {[%emt 0:01:47]} Qxh5 {[%emt 0:00:07]} 22. Rac1 {[%emt 0:02:57]} Rac8 {[%emt 0:01:40]} 23. Rg1 {[%emt 0:04:11]} Qf5 {[%emt 0:09:52]} 24. f4 {[%emt 0:01:10]} b6 {[%emt 0:01:12]} 25. Qd2 {[%emt 0:05:02]} Rfd8 {[%emt 0:01:00]} 26. a3 {[%emt 0:01:48]} Re8 {[%emt 0:03:06]} 27. Rxc8 {[%emt 0:02:16]} Rxc8 {[%emt 0:00:01]} 28. Rc1 {[%emt 0:00:09]} Rxc1 {[%emt 0:01:23]} 29. Qxc1 {[%emt 0:00:02]} Qd3 {[%emt 0:01:40]} 30. Bf1 {[%emt 0:00:13]} Qe4 {[%emt 0:00:11]} 31. Qd2 {[%emt 0:00:27]} Qf5 {[%emt 0:01:03]} 32. Bg2 {[%emt 0:05:54]} Kh8 {[%emt 0:02:14]} 33. Qc3 {[%emt 0:01:14]} Kg8 {[%emt 0:00:31]} 34. Qc7 {[%emt 0:02:11]} Qd3 {[%emt 0:01:23]} 35. Qe5 {[%emt 0:02:03]} g6 {[%emt 0:02:15]} 36. Kg3 {[%emt 0:02:40]} Qe2 {[%emt 0:02:33]} 37. Qc3 {[%emt 0:01:07]} Qd1 {[%emt 0:00:24]} 38. Kf2 {[%emt 0:02:35]} Qh5 {[%emt 0:01:06]} 39. Kg3 {[%emt 0:00:27]} Qd1 {[%emt 0:00:14]} 40. Kf2 {[%emt 0:00:00]} Qh5 {[%emt 0:00:00]} 41. Kg3 {[%emt 0:11:03]} 1/2-1/2

[Event "5th EKA IIFL Investment 2019"]
[Site "Mumbai"]
[Date "2020.01.02"]
[Round "4.43"]
[White "Rathnakaran, K.."]
[Black "Parnali, S Dharia"]
[Result "1/2-1/2"]
[ECO "C50"]
[WhiteElo "2322"]
[BlackElo "2102"]
[Annotator "ChessBase"]
[PlyCount "111"]
[EventDate "2019.12.30"]
[EventType "swiss"]
[EventCountry "IND"]
[SourceTitle "playchess.com"]
[Source "ChessBase"]
[SourceQuality "1"]
[TimeControl "40/5400+30:1800+30"]

1. e4 {[%emt 0:00:00]} e5 {[%emt 0:00:00]} 2. Nf3 {[%emt 0:00:00]} Nc6 {[%emt 0:00:00]} 3. Bc4 {[%emt 0:00:00]} Nf6 {[%emt 0:00:00]} 4. d3 {[%emt 0:00:00]} Bc5 {[%emt 0:00:09]} 5. c3 {[%emt 0:00:00]} a6 {[%emt 0:00:23]} 6. Bb3 {[%emt 0:00:00]} Ba7 {[%emt 0:00:22]} 7. Be3 {[%emt 0:00:03]} d6 {[%emt 0:00:52]} 8. Nbd2 {[%emt 0:00:09]} Qe7 {[%emt 0:03:23]} 9. Nf1 {[%emt 0:00:17]} Be6 {[%emt 0:00:22]} 10. Bxa7 {[%emt 0:00:06]} Nxa7 {[%emt 0:01:42]} 11. Ne3 {[%emt 0:00:05]} O-O-O {[%emt 0:01:42]} 12. c4 {[%emt 0:00:18]} Kb8 {[%emt 0:07:04]} 13. a4 {[%emt 0:00:12]} c6 {[%emt 0:04:04]} 14. Qc2 {[%emt 0:00:48]} Ng4 {[%emt 0:03:06]} 15. a5 {[%emt 0:01:37]} Rhf8 {[%emt 0:04:07]} 16. Ba4 {[%emt 0:01:28]} Nxe3 {[%emt 0:01:39]} 17. fxe3 {[%emt 0:00:06]} f5 {[%emt 0:00:02]} 18. h3 {[%emt 0:01:33]} fxe4 {[%emt 0:04:47]} 19. dxe4 {[%emt 0:00:06]} d5 {[%emt 0:08:08]} 20. cxd5 {[%emt 0:00:39]} Qb4+ {[%emt 0:01:03]} 21. Qc3 {[%emt 0:00:06]} Qxc3+ {[%emt 0:01:35]} 22. bxc3 {[%emt 0:00:06]} cxd5 {[%emt 0:00:05]} 23. O-O {[%emt 0:00:35]} dxe4 {[%emt 0:03:49]} 24. Ng5 {[%emt 0:04:08]} Bf5 {[%emt 0:05:14]} 25. Bb3 {[%emt 0:01:15]} Rf6 {[%emt 0:02:38]} 26. Bc2 {[%emt 0:01:03]} Nb5 {[%emt 0:03:33]} 27. Bxe4 {[%emt 0:00:22]} Bxe4 {[%emt 0:05:13]} 28. Nxe4 {[%emt 0:00:05]} Rc6 {[%emt 0:00:11]} 29. Rf7 {[%emt 0:00:06]} Rc4 {[%emt 0:18:11]} 30. Ng5 {[%emt 0:00:45]} Rxc3 {[%emt 0:03:15]} 31. Rxg7 {[%emt 0:00:20]} h5 {[%emt 0:03:24]} 32. e4 {[%emt 0:01:53]} Nd4 {[%emt 0:03:44]} 33. Rh7 {[%emt 0:02:52]} Ne2+ {[%emt 0:03:19]} 34. Kh2 {[%emt 0:00:26]} Nf4 {[%emt 0:05:33]} 35. Ra2 {[%emt 0:02:04]} Rdc8 {[%emt 0:02:46]} 36. Nf7 {[%emt 0:03:27]} R3c7 {[%emt 0:00:22]} 37. Rd2 {[%emt 0:00:40]} h4 {[%emt 0:01:45]} 38. Ng5 {[%emt 0:02:51]} Rc2 {[%emt 0:00:32]} 39. Rhd7 {[%emt 0:00:12]} R8c5 {[%emt 0:00:52]} 40. Nf3 {[%emt 0:00:00]} Rxd2 {[%emt 0:00:00]} 41. Rd6 Rd3 42. Rxd3 {[%emt 0:01:03]} Rxa5 {[%emt 0:01:17]} 43. Rd2 {[%emt 0:00:07]} Ra4 {[%emt 0:00:29]} 44. Nxh4 {[%emt 0:00:50]} Ne6 {[%emt 0:00:55]} 45. g3 {[%emt 0:00:48]} Rd4 46. Nf3 Rxe4 {[%emt 0:01:44]} 47. h4 {[%emt 0:00:34]} Re3 {[%emt 0:08:40]} 48. Ng1 {[%emt 0:05:47]} a5 {[%emt 0:04:00]} 49. Rd6 {[%emt 0:02:20]} Nd4 {[%emt 0:01:40]} 50. h5 {[%emt 0:00:10]} Rc3 {[%emt 0:04:29]} 51. Rd8+ {[%emt 0:02:18]} Kc7 {[%emt 0:01:10]} 52. Ra8 {[%emt 0:00:08]} Rc2+ {[%emt 0:01:07]} 53. Kh3 {[%emt 0:00:08]} Rc1 {[%emt 0:00:06]} 54. Kg2 {[%emt 0:03:24]} Rc2+ {[%emt 0:00:01]} 55. Kh3 {[%emt 0:06:36]} Rc1 {[%emt 0:00:06]} 56. Kh2 {[%emt 0:00:35]} 1/2-1/2

[Event "5th EKA IIFL Investment 2019"]
[Site "Mumbai"]
[Date "2020.01.02"]
[Round "4.45"]
[White "Shiva Pavan Teja Sharma U"]
[Black "Krishnater Kushager"]
[Result "0-1"]
[ECO "B33"]
[WhiteElo "2072"]
[BlackElo "2308"]
[Annotator "NA"]
[PlyCount "69"]
[EventDate "2019.12.30"]
[EventType "swiss"]
[EventCountry "IND"]
[SourceTitle "playchess.com"]
[Source "ChessBase"]
[SourceQuality "1"]
[TimeControl "40/5400+30:1800+30"]

1. e4 {[%emt 0:00:00]} c5 {[%emt 0:00:00]} 2. Nf3 {[%emt 0:00:02]} Nc6 {[%emt 0:00:00]} 3. d4 {[%emt 0:00:24]} cxd4 {[%emt 0:00:00]} 4. Nxd4 {[%emt 0:00:08]} Nf6 {[%emt 0:00:00]} 5. Nc3 {[%emt 0:00:21]} e5 {[%emt 0:00:00]} 6. Ndb5 {[%emt 0:01:10]} d6 {[%emt 0:00:00]} 7. Bg5 {[%emt 0:00:38]} a6 {[%emt 0:00:02]} 8. Na3 {[%emt 0:00:18]} b5 {[%emt 0:00:08]} 9. Nd5 {[%emt 0:00:33]} Be7 {[%emt 0:00:06]} 10. Bxf6 {[%emt 0:00:21]} Bxf6 {[%emt 0:00:05]} 11. c3 {[%emt 0:00:26]} Bg5 {[%emt 0:00:58]} 12. Be2 {[%emt 0:00:32]} O-O {[%emt 0:02:41]} 13. Nc2 {[%emt 0:01:38]} Ne7 {[%emt 0:12:18]} 14. Nxe7+ {[%emt 0:05:03] B33: Sicilian: Pelikan and Sveshnikov Variations} Qxe7 {[%emt 0:00:13]} 15. O-O {[%emt 0:00:15]} Bb7 {[%emt 0:13:50]} 16. Qd3 {[%emt 0:01:21]} (16. Bf3 $11) 16... d5 {[%emt 0:08:14]} 17. exd5 {[%emt 0:01:53]} Rad8 {[%emt 0:00:52]} 18. Ne3 {[%emt 0:03:25]} (18. c4 bxc4 19. Qa3 Qc7 20. Rfd1 Bxd5 21. Qxa6 Ra8 {1-0 (72) Tukhaev,A (2527)-Carlsen,M (2835) St Petersburg 2018}) 18... e4 {[%emt 0:01:11]} 19. Qd4 {[%emt 0:11:42]} f5 {[%emt 0:00:14]} 20. Rad1 $146 {[%emt 0:00:45]} (20. Bd1 $17 {was called for.}) ({Predecessor:} 20. Rfd1 Bf4 21. g3 Be5 22. Nxf5 Rxf5 23. Qxe4 Rxf2 {1-0 (34) Kilian,R (2279)-Achenbach,V Ruhrgebiet 1998}) 20... f4 {[%emt 0:02:42]} 21. d6 {[%emt 0:05:33]} Qf7 {[%emt 0:02:08]} 22. a4 $19 {[%emt 0:06:09]} (22. Qc5 fxe3 23. fxe3) 22... f3 {[%emt 0:09:05]} 23. gxf3 {[%emt 0:01:48]} Bxe3 {[%emt 0:01:02]} 24. Qxe3 {[%emt 0:05:26]} Qg6+ {[%emt 0:00:17]} 25. Kh1 {[%emt 0:00:13]} exf3 {[%emt 0:00:11]} 26. Bc4+ {[%emt 0:00:17]} bxc4 {[%emt 0:00:06]} 27. Rg1 {[%emt 0:00:05]} Qf7 {[%emt 0:10:02]} 28. Qd4 {[%emt 0:09:02]} Rfe8 {[%emt 0:04:22]} 29. h3 {[%emt 0:01:37]} Re4 {[%emt 0:03:17]} 30. Qb6 {[%emt 0:00:46]} Qd7 {[%emt 0:00:10]} 31. Rg3 {[%emt 0:00:37]} Rg4 {[%emt 0:02:05]} 32. Kg1 {[%emt 0:02:37]} Re8 {[%emt 0:03:40]} 33. Qc7 {[%emt 0:01:50]} Bc6 {[%emt 0:00:13]} 34. Qxd7 {[%emt 0:01:36]} Bxd7 {[%emt 0:00:37]} 35. Rd3 0-1

[Event "5th EKA IIFL Investment 2019"]
[Site "Mumbai"]
[Date "2020.01.02"]
[Round "4.48"]
[White "Mohite, Ranveer"]
[Black "Kavinda, Akila"]
[Result "1/2-1/2"]
[ECO "B06"]
[WhiteElo "2281"]
[BlackElo "2022"]
[Annotator "ChessBase"]
[PlyCount "94"]
[EventDate "2019.12.30"]
[EventType "swiss"]
[EventCountry "IND"]
[SourceTitle "playchess.com"]
[Source "ChessBase"]
[SourceQuality "1"]
[TimeControl "40/5400+30:1800+30"]

1. e4 g6 2. d4 Bg7 3. Nc3 d6 4. Be3 a6 5. Qd2 b5 6. h4 h6 7. O-O-O Bb7 8. Kb1 Nd7 9. h5 g5 10. f4 gxf4 11. Bxf4 c5 12. Nf3 b4 13. Nd5 cxd4 14. Nxd4 Bxd4 15. Qxd4 e5 16. Qxb4 Bxd5 17. exd5 exf4 18. Qxd6 Qb8 19. Qa3 Qb6 20. Bd3 Qc5 21. Qa4 Ngf6 22. Bf5 Rb8 23. Rhe1+ Kd8 24. Qxf4 Qb4 25. Qc1 Nc5 26. c3 Qa3 27. Re2 Re8 28. Re4 Re6 29. Rxe6 Ne8 30. b4 Qxc1+ 31. Kxc1 Na4 32. Kc2 Nd6 33. g4 Nb6 34. Rd4 Nbc4 35. Bd3 Rc8 36. Bxc4 Rxc4 37. Kd3 Rxd4+ 38. Kxd4 f5 39. g5 hxg5 40. h6 Nf7 41. h7 g4 42. Ke3 g3 43. Kf3 Ng5+ 44. Kxg3 Nxh7 45. Kf4 Nf6 46. c4 Nd7 47. Kxf5 Nb6 1/2-1/2

[Event "5th EKA IIFL Investment 2019"]
[Site "Mumbai"]
[Date "2020.01.02"]
[Round "4.49"]
[White "Kulasekara, D M T Kashyapa"]
[Black "Manish Anto Cristiano F"]
[Result "0-1"]
[ECO "B90"]
[WhiteElo "1904"]
[BlackElo "2280"]
[Annotator "ChessBase"]
[PlyCount "63"]
[EventDate "2019.12.30"]
[EventType "swiss"]
[EventCountry "IND"]
[SourceTitle "playchess.com"]
[Source "ChessBase"]
[SourceQuality "1"]
[TimeControl "40/5400+30:1800+30"]

1. e4 {[%emt 0:00:00]} c5 {[%emt 0:00:00]} 2. Nf3 {[%emt 0:00:00]} d6 {[%emt 0:00:06]} 3. d4 {[%emt 0:00:00]} cxd4 {[%emt 0:00:37]} 4. Nxd4 {[%emt 0:00:07]} Nf6 {[%emt 0:00:22]} 5. Nc3 {[%emt 0:00:08]} a6 {[%emt 0:00:29]} 6. f3 {[%emt 0:00:24]} e5 {[%emt 0:00:39]} 7. Nb3 {[%emt 0:00:11]} Be6 {[%emt 0:00:37]} 8. Be3 {[%emt 0:00:28]} h5 {[%emt 0:00:38]} 9. Qd2 {[%emt 0:02:25]} Nbd7 {[%emt 0:00:31]} 10. Nd5 {[%emt 0:02:12]} Bxd5 {[%emt 0:02:37]} 11. exd5 {[%emt 0:00:06]} g6 {[%emt 0:00:20]} 12. O-O-O {[%emt 0:03:28]} Nb6 {[%emt 0:02:11]} 13. Bxb6 {[%emt 0:02:58]} Qxb6 {[%emt 0:00:15]} 14. Kb1 {[%emt 0:00:25]} Rc8 {[%emt 0:03:05]} 15. c4 {[%emt 0:03:39]} Bg7 {[%emt 0:02:46]} 16. Bd3 {[%emt 0:13:53]} O-O {[%emt 0:03:19]} 17. h3 {[%emt 0:07:49]} Rfe8 {[%emt 0:02:44]} 18. Rhe1 {[%emt 0:03:05]} Qc7 {[%emt 0:14:40]} 19. g4 {[%emt 0:06:55]} e4 {[%emt 0:06:40]} 20. fxe4 {[%emt 0:32:56]} hxg4 {[%emt 0:00:31]} 21. Qh2 {[%emt 0:10:26]} gxh3 {[%emt 0:04:22]} 22. Qxh3 {[%emt 0:00:32]} Nd7 {[%emt 0:04:57]} 23. Rg1 {[%emt 0:04:49]} Ne5 {[%emt 0:00:40]} 24. Nd4 {[%emt 0:04:16]} Nxd3 25. Ne6 {[%emt 0:00:45]} Rxe6 {[%emt 0:04:52]} 26. dxe6 {[%emt 0:00:15]} Nxb2 {[%emt 0:04:19]} 27. e7 {[%emt 0:00:15]} f5 {[%emt 0:01:49]} 28. exf5 {[%emt 0:00:57]} Qxe7 {[%emt 0:08:05]} 29. Rde1 {[%emt 0:00:13]} Nxc4 {[%emt 0:02:19]} 30. Qh7+ {[%emt 0:00:44]} Kf8 {[%emt 0:00:01]} 31. Qh8+ {[%emt 0:00:34]} Bxh8 {[%emt 0:00:02]} 32. fxg6 {[%emt 0:00:08]} 0-1